bitfinex/quotes_SOLUSD_20220218
["timestamp","ask_amount","ask_price","bid_price","bid_amount"]
[1645183315273,1.46826473,94.779,94.744,0.62955743]
[1645183315674,1.46826473,94.777,94.744,0.62955743]
[1645183315873,1.46826473,94.779,94.744,0.62955743]
[1645183316073,1.46826473,94.781,94.744,0.62955743]
[1645183316269,1.46826473,94.784,94.745,44.57000443]
[1645183316471,1.46826473,94.783,94.744,0.62955743]
[1645183316873,1.46826473,94.779,94.744,0.62955743]
[1645183317075,1.46826473,94.778,94.744,0.62955743]
[1645183317273,1.46826473,94.777,94.744,0.62955743]
[1645183317672,5.46,94.777,94.744,0.62955743]
[1645183317875,1.46826473,94.774,94.744,0.62955743]
[1645183318073,1.46826473,94.769,94.744,0.62955743]
[1645183318477,1.46826473,94.765,94.691,23.1016]
[1645183318673,15.8425,94.76,94.694,51.16714064]
[1645183318874,1.46826473,94.757,94.694,51.16714064]
[1645183319108,1.46826473,94.755,94.69,15.8425]
[1645183319275,1.46826473,94.755,94.665,23.4592]
[1645183319477,1.46826473,94.747,94.665,23.4592]
[1645183319674,1.46826473,94.742,94.665,23.4592]
[1645183319975,1.46826473,94.741,94.665,23.4592]
[1645183320178,41.4850708,94.74,94.666,43.32020546]
[1645183320374,55.86340607,94.74,94.68,15.8457]
[1645183320574,55.86340607,94.74,94.681,53.58577645]
[1645183320978,55.86340607,94.74,94.652,5.279]
[1645183321175,1.46826473,94.735,94.653,105.5]
[1645183321375,15.8484,94.73,94.66,15.8487]
[1645183321975,15.8484,94.73,94.661,39.43286174]
[1645183322183,15.8484,94.73,94.66,15.8487]
[1645183322376,15.8527,94.7,94.64,15.8521]
[1645183322576,15.8527,94.7,94.63,5.279]
[1645183322577,22.3627,94.7,94.63,5.279]
[1645183322775,28.4727,94.699,94.63,5.279]
[1645183323284,41.63918185,94.698,94.631,43.69369332]
[1645183324278,15.8548,94.69,94.631,43.69369332]
[1645183326484,15.8548,94.69,94.63,5.279]
[1645183326684,5.282,94.689,94.585,5.282]
[1645183326884,15.8583,94.67,94.572,5.283]
[1645183327088,24.3704,94.669,94.572,5.283]
[1645183327485,53.84902183,94.668,94.573,45.7093188]
[1645183327686,53.84902183,94.668,94.574,110.784]
[1645183327885,15.8598,94.66,94.581,105.5]
[1645183328086,15.8598,94.66,94.58,15.86]
[1645183328285,15.8598,94.66,94.573,45.7093188]
[1645183328286,5.284,94.659,94.573,45.7093188]
[1645183328892,7.9133831,94.659,94.573,45.7093188]
[1645183329185,5.284,94.659,94.573,45.7093188]
[1645183329388,15.8647,94.64,94.573,45.7093188]
[1645183329788,40.64549582,94.639,94.573,45.7093188]
[1645183329988,45.76549582,94.639,94.573,45.7093188]
[1645183331293,45.76549582,94.639,94.554,5.0]
[1645183331496,15.8672,94.63,94.554,5.0]
[1645183331694,5.285,94.629,94.554,5.0]
[1645183331894,15.23,94.62,94.554,5.0]
[1645183332096,39.19435285,94.619,94.554,5.0]
[1645183332295,44.47935285,94.619,94.554,5.0]
[1645183332501,15.8715,94.61,94.554,5.0]
[1645183333293,15.8715,94.61,94.575,0.65305383]
[1645183333495,100.0,94.609,94.554,5.0]
[1645183333699,107.9143831,94.609,94.554,5.0]
[1645183333897,15.8721,94.6,94.554,5.0]
[1645183334113,5.285,94.599,94.554,5.0]
[1645183334314,52.90294014,94.598,94.554,5.0]
[1645183335313,5.285,94.597,94.554,5.0]
[1645183335516,52.90294014,94.598,94.554,5.0]
[1645183338518,23.5628,94.628,94.556,0.57406819]
[1645183338816,106.7731,94.657,94.556,0.57406819]
[1645183339018,77.7477,94.657,94.561,105.5]
[1645183339416,51.6020845,94.656,94.57,52.8601]
[1645183339617,51.6020845,94.656,94.58,15.23]
[1645183339818,51.6020845,94.656,94.581,45.5778959]
[1645183340022,51.6020845,94.656,94.59,15.8575]
[1645183340429,51.6020845,94.656,94.6,15.23]
[1645183340626,51.6020845,94.656,94.601,44.22263598]
[1645183341025,51.6020845,94.656,94.61,15.855]
[1645183341630,5.283,94.689,94.61,15.855]
[1645183341830,15.23,94.73,94.611,67.962]
[1645183342027,23.7769,94.733,94.641,105.5]
[1645183342227,23.7769,94.733,94.643,105.5]
[1645183342627,23.7769,94.733,94.645,105.5]
[1645183342628,48.42545299,94.732,94.645,105.5]
[1645183343031,48.42545299,94.732,94.65,15.8475]
[1645183343228,23.50583098,94.731,94.644,53.79642021]
[1645183343629,2.6293831,94.73,94.644,53.79642021]
[1645183343832,5.28,94.729,94.644,53.79642021]
[1645183344430,2.6293831,94.728,94.644,53.79642021]
[1645183344634,5.28,94.727,94.644,53.79642021]
[1645183345030,15.8513,94.72,94.644,53.79642021]
[1645183345235,2.6293831,94.726,94.645,105.5]
[1645183345430,48.42545299,94.732,94.645,110.78]
[1645183346433,48.42545299,94.732,94.651,105.5]
[1645183347037,5.28,94.739,94.653,168.18]
[1645183347235,1.46826473,94.761,94.653,168.18]
[1645183347436,1.46826473,94.761,94.655,168.18]
[1645183347635,56.92685449,94.787,94.671,168.18]
[1645183347636,1.46826473,94.77,94.671,168.18]
[1645183347837,1.46826473,94.779,94.671,172.74]
[1645183348037,43.52713657,94.778,94.673,168.18]
[1645183348236,5.277,94.777,94.673,105.5]
[1645183348436,1.46826473,94.776,94.672,44.8562959]
[1645183348638,1.46826473,94.768,94.672,44.8562959]
[1645183348836,1.46826473,94.77,94.672,44.8562959]
[1645183349038,1.46826473,94.769,94.672,44.8562959]
[1645183349240,2.6293831,94.769,94.672,44.8562959]
[1645183349441,2.6293831,94.769,94.681,62.68]
[1645183349638,23.8371,94.774,94.687,62.68]
[1645183349841,23.8371,94.774,94.694,105.5]
[1645183351440,23.8371,94.774,94.687,52.59675906]
[1645183351441,23.8371,94.774,94.7,15.839]
[1645183352864,0.57924026,94.768,94.7,15.839]
[1645183354040,0.57924026,94.768,94.701,105.5]
[1645183354339,0.57924026,94.768,94.703,105.5]
[1645183354540,0.57924026,94.768,94.71,15.8396]
[1645183354748,0.57924026,94.768,94.711,105.5]
[1645183354951,0.57924026,94.768,94.703,62.68]
[1645183355147,0.57924026,94.768,94.704,105.5]
[1645183355546,0.57924026,94.768,94.702,50.61914961]
[1645183356145,0.57924026,94.768,94.72,15.838]
[1645183356346,0.57924026,94.768,94.721,43.73475889]
[1645183357846,0.57924026,94.768,94.722,5.277]
[1645183358051,44.10726454,94.778,94.722,5.277]
[1645183358447,44.10726454,94.778,94.73,15.8353]
[1645183358649,0.58012797,94.778,94.73,15.8353]
[1645183359048,0.58012797,94.778,94.731,105.5]
[1645183359254,0.58012797,94.778,94.733,105.5]
[1645183359451,0.58012797,94.778,94.741,105.5]
[1645183359655,0.58012797,94.778,94.743,105.5]
[1645183360055,0.58012797,94.778,94.75,15.23]
[1645183360249,0.58012797,94.778,94.751,5.276]
[1645183360749,0.58012797,94.778,94.76,15.8272]
[1645183361150,0.58012797,94.778,94.761,44.82615699]
[1645183363152,0.146426,94.796,94.77,15.8291]
[1645183364963,0.146426,94.796,94.76,15.8318]
[1645183365156,2.7758091,94.796,94.741,5.275]
[1645183365557,0.146426,94.796,94.741,5.275]
[1645183365958,0.146426,94.796,94.743,105.5]
[1645183366361,0.146426,94.796,94.75,15.8334]
[1645183367669,0.146426,94.796,94.772,0.63306858]
[1645183372488,0.146426,94.796,94.781,39.97171802]
[1645183375193,0.146426,94.796,94.78,15.8287]
[1645183377697,0.146426,94.796,94.781,105.5]
[1645183378696,0.146426,94.796,94.783,168.18]
[1645183378898,0.006426,94.796,94.783,168.18]
[1645183379099,0.006426,94.796,94.785,105.5]
[1645183379100,0.292852,94.796,94.785,105.5]
[1645183379299,1.46826473,94.849,94.801,105.5]
[1645183379701,1.46826473,94.851,94.802,145.87794524]
[1645183379898,1.46826473,94.852,94.802,145.87794524]
[1645183380402,1.46826473,94.853,94.802,145.87794524]
[1645183381200,1.46826473,94.852,94.802,145.87794524]
[1645183381500,1.46826473,94.85,94.811,105.5]
[1645183381700,1.46826473,94.85,94.802,40.37794524]
[1645183381901,1.46826473,94.853,94.803,5.272]
[1645183382101,1.46826473,94.857,94.803,67.952]
[1645183382300,1.46826473,94.862,94.82,15.8219]
[1645183382501,1.46826473,94.862,94.821,110.771]
[1645183382703,1.46826473,94.864,94.821,105.5]
[1645183382921,46.03289994,94.863,94.822,56.76568336]
[1645183383105,46.03289994,94.863,94.822,51.49468336]
[1645183383302,1.46826473,94.859,94.82,15.8219]
[1645183383603,1.46826473,94.858,94.82,15.8219]
[1645183383806,1.46826473,94.855,94.82,15.8219]
[1645183384002,1.46826473,94.854,94.82,15.8219]
[1645183384302,1.46826473,94.852,94.82,15.8219]
[1645183384802,1.46826473,94.853,94.82,15.8219]
[1645183385804,1.46826473,94.856,94.82,15.8219]
[1645183386008,1.46826473,94.853,94.82,15.8219]
[1645183386627,1.46826473,94.851,94.82,15.8219]
[1645183387305,1.46826473,94.844,94.81,15.8244]
[1645183387708,1.46826473,94.844,94.792,105.5]
[1645183387709,1.46826473,94.844,94.791,5.271]
[1645183387911,1.46826473,94.842,94.791,5.271]
[1645183388109,1.46826473,94.835,94.791,5.271]
[1645183388310,1.46826473,94.834,94.791,5.271]
[1645183388512,1.46826473,94.833,94.802,43.22666243]
[1645183388710,49.57751661,94.841,94.802,148.72666243]
[1645183389309,1.46826473,94.847,94.802,148.72666243]
[1645183389510,1.46826473,94.855,94.802,148.72666243]
[1645183389714,1.46826473,94.861,94.802,148.72666243]
[1645183389914,1.46826473,94.862,94.814,105.5]
[1645183390114,1.46826473,94.864,94.814,105.5]
[1645183390312,46.92174294,94.863,94.814,105.5]
[1645183391116,46.92174294,94.863,94.822,53.91568629]
[1645183391915,46.92174294,94.863,94.81,52.725]
[1645183392113,1.46826473,94.862,94.81,15.8233]
[1645183392514,1.46826473,94.856,94.81,15.8233]
[1645183392915,1.46826473,94.859,94.811,54.93935298]
[1645183393217,1.46826473,94.86,94.811,54.93935298]
[1645183393616,1.46826473,94.859,94.811,54.93935298]
[1645183393819,1.46826473,94.857,94.811,54.93935298]
[1645183394235,1.46826473,94.858,94.811,54.93935298]
[1645183394438,1.46826473,94.857,94.82,15.8218]
[1645183395037,1.46826473,94.856,94.82,15.8218]
[1645183395240,1.46826473,94.857,94.82,15.8218]
[1645183395437,1.46826473,94.859,94.82,15.8218]
[1645183396240,1.46826473,94.858,94.82,15.8218]
[1645183396740,1.46826473,94.859,94.82,15.8218]
[1645183396940,1.46826473,94.859,94.811,54.93935298]
[1645183397142,1.46826473,94.855,94.811,54.93935298]
[1645183397342,41.20452984,94.854,94.811,54.93935298]
[1645183397541,1.46826473,94.854,94.811,54.93935298]
[1645183397944,1.46826473,94.853,94.822,0.65240768]
[1645183398643,1.46826473,94.852,94.822,0.65240768]
[1645183398842,1.46826473,94.851,94.822,0.65240768]
[1645183399244,1.46826473,94.852,94.822,0.65240768]
[1645183399644,1.46826473,94.858,94.822,0.65240768]
[1645183399850,1.46826473,94.859,94.822,0.65240768]
[1645183400246,1.46826473,94.856,94.822,0.65240768]
[1645183400445,1.46826473,94.854,94.822,0.65240768]
[1645183400847,44.42710627,94.852,94.822,0.65240768]
[1645183401245,1.46826473,94.85,94.822,0.65240768]
[1645183401548,1.46826473,94.848,94.822,0.65240768]
[1645183401952,1.46826473,94.85,94.822,0.65240768]
[1645183402153,1.46826473,94.846,94.822,0.65240768]
[1645183402356,1.46826473,94.848,94.822,0.65240768]
[1645183402557,1.46826473,94.847,94.822,0.65240768]
[1645183402758,1.46826473,94.843,94.822,0.65240768]
[1645183402957,1.46826473,94.838,94.8,0.65213065]
[1645183403160,1.46826473,94.836,94.8,0.65213065]
[1645183403363,39.05238356,94.829,94.8,0.65213065]
[1645183403558,1.46826473,94.829,94.8,0.65213065]
[1645183403759,1.46826473,94.833,94.8,0.65213065]
[1645183403959,1.46826473,94.832,94.8,0.65213065]
[1645183404360,1.46826473,94.833,94.8,0.65213065]
[1645183404659,1.46826473,94.827,94.8,0.65213065]
[1645183404859,1.46826473,94.825,94.8,0.65213065]
[1645183405381,1.46826473,94.821,94.8,0.65213065]
[1645183406362,1.46826473,94.819,94.8,0.65213065]
[1645183406760,1.46826473,94.82,94.8,0.65213065]
[1645183406962,1.46826473,94.819,94.8,0.65213065]
[1645183407666,1.46826473,94.817,94.8,0.65213065]
[1645183407961,40.24479332,94.817,94.78,51.06931865]
[1645183408161,40.24479332,94.817,94.77,15.8289]
[1645183408361,1.46826473,94.816,94.77,15.8289]
[1645183409263,1.46826473,94.816,94.771,50.29720885]
[1645183409464,41.71305805,94.817,94.771,50.29720885]
[1645183409864,40.24479332,94.817,94.771,50.29720885]
[1645183410063,40.24479332,94.817,94.78,15.8275]
[1645183410263,1.46826473,94.821,94.78,15.8275]
[1645183410463,1.46826473,94.825,94.78,15.8275]
[1645183410663,1.46826473,94.826,94.78,15.8275]
[1645183410863,1.46826473,94.823,94.78,15.8275]
[1645183411263,54.78458213,94.822,94.78,15.8275]
[1645183412765,54.78458213,94.822,94.77,15.8289]
[1645183413167,1.46826473,94.819,94.77,15.8289]
[1645183413371,1.46826473,94.818,94.77,15.8289]
[1645183413572,1.46826473,94.818,94.753,5.274]
[1645183413769,1.46826473,94.817,94.754,43.38845894]
[1645183413971,1.46826473,94.817,94.755,5.274]
[1645183414171,1.46826473,94.816,94.755,5.274]
[1645183414372,1.46826473,94.816,94.76,15.8306]
[1645183415174,1.46826473,94.811,94.755,5.274]
[1645183415374,1.46826473,94.811,94.754,43.38845894]
[1645183415574,1.46826473,94.801,94.754,43.38845894]
[1645183415776,48.67922639,94.8,94.754,43.38845894]
[1645183416178,47.21096166,94.8,94.754,43.38845894]
[1645183417377,24.20096166,94.8,94.754,43.38845894]
[1645183419581,24.20096166,94.8,94.75,15.8323]
[1645183420596,24.20096166,94.8,94.751,50.28602176]
[1645183421600,24.20096166,94.8,94.727,5.275]
[1645183421800,1.46826473,94.795,94.727,5.275]
[1645183422502,1.46826473,94.793,94.728,39.54673802]
[1645183422704,1.46826473,94.793,94.756,0.75347792]
[1645183423000,1.46826473,94.795,94.756,0.75347792]
[1645183423400,15.8382,94.79,94.756,0.75347792]
[1645183423802,1.46826473,94.795,94.756,0.75347792]
[1645183424207,1.46826473,94.796,94.756,0.75347792]
[1645183424403,1.46826473,94.798,94.756,0.75347792]
[1645183425006,26.25686473,94.799,94.756,0.75347792]
[1645183425202,24.7886,94.799,94.756,0.75347792]
[1645183425402,1.46826473,94.797,94.756,0.75347792]
[1645183425603,30.0636,94.799,94.756,0.75347792]
[1645183425804,31.53186473,94.799,94.756,0.75347792]
[1645183426003,1.46826473,94.795,94.756,0.75347792]
[1645183426203,1.46826473,94.797,94.756,0.75347792]
[1645183426404,1.46826473,94.798,94.756,0.75347792]
[1645183427203,24.7886,94.799,94.756,0.75347792]
[1645183427405,30.0636,94.799,94.756,0.75347792]
[1645183427606,1.46826473,94.797,94.756,0.75347792]
[1645183427808,1.46826473,94.793,94.756,0.75347792]
[1645183428012,1.46826473,94.79,94.727,6.02819857]
[1645183428214,1.46826473,94.788,94.727,0.75319857]
[1645183428412,1.46826473,94.781,94.727,0.75319857]
[1645183428711,2.6293831,94.792,94.727,0.75319857]
[1645183428712,54.37937783,94.78,94.727,0.75319857]
[1645183428911,52.9111131,94.78,94.727,0.75319857]
[1645183429112,5.276,94.779,94.727,0.75319857]
[1645183429312,15.8408,94.77,94.727,0.75319857]
[1645183431655,5.277,94.769,94.727,0.75319857]
[1645183431852,15.8408,94.77,94.727,0.75319857]
[1645183432047,5.277,94.768,94.727,0.75319857]
[1645183433349,15.8408,94.77,94.7,16.59805032]
[1645183435452,5.277,94.769,94.7,16.59805032]
[1645183436053,5.277,94.777,94.7,16.59805032]
[1645183436654,6.74526473,94.777,94.7,16.59805032]
[1645183436851,15.8409,94.77,94.7,0.75725032]
[1645183437051,5.277,94.769,94.7,0.75725032]
[1645183437950,5.277,94.769,94.693,23.6883]
[1645183440653,5.277,94.769,94.7,15.8403]
[1645183440854,15.8409,94.77,94.7,15.8403]
[1645183441956,15.8409,94.77,94.7,121.3403]
[1645183442554,1.46826473,94.776,94.7,15.8403]
[1645183442956,1.46826473,94.776,94.7,121.3403]
[1645183443156,1.46826473,94.776,94.7,15.8403]
[1645183443853,1.46826473,94.775,94.7,15.8403]
[1645183444052,1.46826473,94.774,94.7,15.8403]
[1645183444457,1.46826473,94.773,94.7,15.8403]
[1645183444857,1.46826473,94.772,94.7,15.8403]
[1645183445053,1.46826473,94.769,94.7,15.8403]
[1645183445454,1.46826473,94.769,94.711,105.5]
[1645183445655,22.6654,94.778,94.71,15.23]
[1645183446054,22.6654,94.778,94.711,105.5]
[1645183446456,51.11778699,94.777,94.711,148.83313544]
[1645183447456,22.6654,94.778,94.72,15.8369]
[1645183448258,22.6654,94.778,94.711,43.33313544]
[1645183448457,47.8352952,94.777,94.711,43.33313544]
[1645183451060,47.8352952,94.777,94.72,15.8373]
[1645183452262,1.46826473,94.776,94.711,43.33313544]
[1645183452462,1.46826473,94.773,94.711,43.33313544]
[1645183452660,1.46826473,94.772,94.68,15.23]
[1645183452862,1.46826473,94.765,94.713,0.75947045]
[1645183453067,1.46826473,94.76,94.713,0.75947045]
[1645183453364,1.46826473,94.763,94.713,0.75947045]
[1645183453565,42.49427639,94.762,94.713,0.75947045]
[1645183453765,47.77127639,94.762,94.713,0.75947045]
[1645183453965,1.46826473,94.76,94.713,0.75947045]
[1645183454168,6.74526473,94.759,94.713,0.75947045]
[1645183454364,1.46826473,94.759,94.713,0.75947045]
[1645183454563,6.74526473,94.759,94.713,0.75947045]
[1645183454767,1.46826473,94.758,94.713,0.75947045]
[1645183455168,25.57446473,94.758,94.713,0.75947045]
[1645183455365,1.46826473,94.757,94.713,0.75947045]
[1645183456066,1.46826473,94.756,94.714,40.10885974]
[1645183456266,1.46826473,94.757,94.714,40.10885974]
[1645183456466,1.46826473,94.754,94.714,40.10885974]
[1645183456668,5.277,94.753,94.714,40.10885974]
[1645183457369,1.46826473,94.754,94.714,40.10885974]
[1645183457970,1.46826473,94.754,94.715,0.75919084]
[1645183458268,5.277,94.753,94.715,0.75919084]
[1645183458467,1.46826473,94.753,94.715,0.75919084]
[1645183458668,1.46826473,94.754,94.715,0.75919084]
[1645183459076,1.46826473,94.753,94.715,0.75919084]
[1645183459772,1.46826473,94.754,94.715,0.75919084]
[1645183460370,1.46826473,94.756,94.715,0.75919084]
[1645183460574,24.1062,94.758,94.715,0.75919084]
[1645183461772,1.46826473,94.763,94.715,106.25919084]
[1645183461974,1.46826473,94.774,94.715,106.25919084]
[1645183462172,24.2216,94.778,94.72,15.23]
[1645183463074,24.2216,94.778,94.73,15.8353]
[1645183463372,24.2216,94.778,94.731,40.48550061]
[1645183464173,42.34539897,94.777,94.731,40.48550061]
[1645183464375,49.0896637,94.777,94.717,0.75891125]
[1645183464575,1.46826473,94.77,94.717,0.75891125]
[1645183464772,1.46826473,94.769,94.717,0.75891125]
[1645183464973,1.46826473,94.77,94.717,0.75891125]
[1645183465176,1.46826473,94.767,94.717,0.75891125]
[1645183465401,1.46826473,94.767,94.718,41.78889308]
[1645183466275,1.46826473,94.768,94.718,41.78889308]
[1645183466873,1.46826473,94.765,94.718,41.78889308]
[1645183467075,5.277,94.764,94.718,41.78889308]
[1645183467276,1.46826473,94.765,94.718,41.78889308]
[1645183467573,1.46826473,94.767,94.718,41.78889308]
[1645183468174,1.46826473,94.773,94.718,41.78889308]
[1645183468374,1.46826473,94.772,94.718,41.78889308]
[1645183468576,1.46826473,94.773,94.718,41.78889308]
[1645183469183,42.34539897,94.777,94.718,41.78889308]
[1645183469378,43.8136637,94.777,94.718,41.78889308]
[1645183469776,1.46826473,94.775,94.718,41.78889308]
[1645183470279,1.46826473,94.774,94.718,41.78889308]
[1645183470883,1.46826473,94.773,94.718,41.78889308]
[1645183471484,1.46826473,94.773,94.71,15.839]
[1645183471682,1.46826473,94.771,94.71,15.839]
[1645183471883,15.841,94.77,94.704,23.5065]
[1645183472083,1.46826473,94.763,94.704,23.5065]
[1645183472384,45.74337325,94.761,94.713,48.2381748]
[1645183472584,1.46826473,94.762,94.713,48.2381748]
[1645183472786,1.46826473,94.763,94.713,48.2381748]
[1645183473004,1.46826473,94.768,94.713,48.2381748]
[1645183473205,15.841,94.77,94.713,48.2381748]
[1645183473206,1.46826473,94.766,94.713,48.2381748]
[1645183473609,1.46826473,94.766,94.713,0.75947045]
[1645183473806,15.8425,94.76,94.713,0.75947045]
[1645183474007,17.31076473,94.76,94.713,0.75947045]
[1645183474204,1.46826473,94.758,94.713,0.75947045]
[1645183474405,1.46826473,94.756,94.713,0.75947045]
[1645183474606,65.1942493,94.755,94.713,0.75947045]
[1645183474906,24.9805,94.755,94.713,0.75947045]
[1645183478916,1.46826473,94.753,94.713,0.75947045]
[1645183479116,1.46826473,94.752,94.713,0.75947045]
[1645183479317,24.9805,94.755,94.713,0.75947045]
[1645183479318,1.46826473,94.75,94.713,0.75947045]
[1645183479517,1.46826473,94.749,94.713,0.75947045]
[1645183479722,6.74526473,94.748,94.713,0.75947045]
[1645183479920,1.46826473,94.748,94.713,0.75947045]
[1645183480118,5.277,94.747,94.713,0.75947045]
[1645183481618,1.46826473,94.748,94.713,0.75947045]
[1645183482019,15.8442,94.75,94.713,0.75947045]
[1645183483222,15.8442,94.75,94.715,0.75919453]
[1645183486428,24.9805,94.755,94.716,41.03982493]
[1645183486631,1.46826473,94.765,94.716,41.03982493]
[1645183486829,1.46826473,94.769,94.716,41.03982493]
[1645183487233,1.46826473,94.77,94.716,41.03982493]
[1645183487428,1.46826473,94.771,94.716,41.03982493]
[1645183487629,1.46826473,94.767,94.716,41.03982493]
[1645183487828,1.46826473,94.761,94.717,0.75891494]
[1645183488231,1.46826473,94.762,94.717,0.75891494]
[1645183488832,1.46826473,94.763,94.718,41.12422776]
[1645183489033,1.46826473,94.762,94.718,41.12422776]
[1645183489631,1.46826473,94.763,94.718,41.12422776]
[1645183489833,1.46826473,94.767,94.718,41.12422776]
[1645183491652,45.62119748,94.768,94.718,41.12422776]
[1645183491832,1.46826473,94.767,94.718,41.12422776]
[1645183492232,1.46826473,94.769,94.718,41.12422776]
[1645183493134,1.46826473,94.769,94.72,0.75849557]
[1645183494133,1.46826473,94.768,94.72,0.75849557]
[1645183494536,1.46826473,94.771,94.72,0.75849557]
[1645183494736,1.46826473,94.772,94.72,0.75849557]
[1645183494934,1.46826473,94.77,94.72,0.75849557]
[1645183495135,1.46826473,94.769,94.72,0.75849557]
[1645183495337,1.46826473,94.77,94.72,0.75849557]
[1645183495537,1.46826473,94.769,94.72,0.75849557]
[1645183496642,1.46826473,94.766,94.72,0.75849557]
[1645183497042,48.57728886,94.765,94.72,0.75849557]
[1645183497942,50.04555359,94.765,94.72,0.75849557]
[1645183498143,48.57728886,94.765,94.718,41.12422776]
[1645183498343,1.46826473,94.766,94.718,41.12422776]
[1645183498945,1.46826473,94.765,94.718,41.12422776]
[1645183499170,1.46826473,94.764,94.72,15.8375]
[1645183499370,1.46826473,94.772,94.72,15.8375]
[1645183499771,1.46826473,94.774,94.72,15.8375]
[1645183499974,1.46826473,94.771,94.72,15.8375]
[1645183500574,1.46826473,94.775,94.721,105.5]
[1645183500777,1.46826473,94.775,94.731,105.5]
[1645183500976,1.46826473,94.777,94.731,105.5]
[1645183501378,24.5107,94.796,94.731,105.5]
[1645183501379,1.46826473,94.783,94.731,105.5]
[1645183501575,1.46826473,94.783,94.735,105.5]
[1645183501873,1.46826473,94.788,94.741,105.5]
[1645183502073,1.46826473,94.804,94.741,105.5]
[1645183502276,1.46826473,94.805,94.745,105.5]
[1645183502475,1.46826473,94.805,94.751,105.5]
[1645183502675,1.46826473,94.814,94.751,105.5]
[1645183502875,1.46826473,94.814,94.753,105.5]
[1645183503076,1.46826473,94.815,94.753,105.5]
[1645183503275,1.46826473,94.823,94.754,5.274]
[1645183503676,1.46826473,94.82,94.754,5.274]
[1645183504077,1.46826473,94.821,94.754,5.274]
[1645183504375,1.46826473,94.821,94.76,15.8287]
[1645183504575,1.46826473,94.821,94.761,45.1607547]
[1645183504875,51.30635896,94.822,94.761,45.1607547]
[1645183505175,51.30635896,94.822,94.761,39.8867547]
[1645183505976,51.30635896,94.822,94.77,15.8285]
[1645183506178,51.30635896,94.822,94.761,39.8867547]
[1645183506876,23.6922,94.821,94.761,39.8867547]
[1645183508276,23.6922,94.821,94.762,105.5]
[1645183508478,5.274,94.828,94.771,105.5]
[1645183508678,5.274,94.828,94.77,15.8293]
[1645183508679,1.46826473,94.831,94.775,105.5]
[1645183508880,1.46826473,94.831,94.774,62.68]
[1645183508881,1.46826473,94.831,94.777,105.5]
[1645183509078,1.46826473,94.848,94.781,105.5]
[1645183509279,1.46826473,94.853,94.783,105.5]
[1645183509479,1.46826473,94.853,94.8,15.8244]
[1645183509680,1.46826473,94.854,94.801,43.14793683]
[1645183510084,1.46826473,94.855,94.801,43.14793683]
[1645183510681,53.87590238,94.857,94.801,43.14793683]
[1645183513085,53.87590238,94.857,94.802,0.7470458]
[1645183514386,5.272,94.856,94.802,0.7470458]
[1645183514585,23.7942,94.856,94.802,0.7470458]
[1645183514984,15.8277,94.85,94.802,0.7470458]
[1645183515186,5.272,94.849,94.802,0.7470458]
[1645183515385,15.8277,94.85,94.802,0.7470458]
[1645183516890,1.46826473,94.853,94.802,0.7470458]
[1645183517092,23.7942,94.856,94.802,0.7470458]
[1645183517292,5.272,94.855,94.802,0.7470458]
[1645183517916,50.19899174,94.854,94.802,0.7470458]
[1645183518217,50.19899174,94.854,94.804,0.74676672]
[1645183520023,15.8278,94.85,94.804,0.74676672]
[1645183520522,50.19899174,94.854,94.804,0.74676672]
[1645183523122,50.19899174,94.854,94.802,1.49353345]
[1645183523923,51.66725647,94.854,94.802,1.49353345]
[1645183524525,1.46826473,94.852,94.802,1.49353345]
[1645183524724,1.46826473,94.853,94.802,1.49353345]
[1645183524923,15.8274,94.85,94.802,1.49353345]
[1645183525125,5.272,94.849,94.802,1.49353345]
[1645183525326,6.74026473,94.849,94.802,1.49353345]
[1645183525524,1.46826473,94.846,94.802,1.49353345]
[1645183525724,1.46826473,94.844,94.802,1.49353345]
[1645183526229,15.8294,94.84,94.802,1.49353345]
[1645183526428,100.0,94.839,94.802,3.345e-05]
[1645183526624,100.0,94.839,94.742,24.1485]
[1645183526625,1.46826473,94.826,94.742,24.1485]
[1645183526827,1.46826473,94.813,94.742,24.1485]
[1645183527025,1.46826473,94.812,94.742,24.1485]
[1645183527324,1.46826473,94.808,94.743,42.51338467]
[1645183527525,5.275,94.807,94.743,42.51338467]
[1645183528535,1.46826473,94.808,94.743,42.51338467]
[1645183528924,1.46826473,94.806,94.743,42.51338467]
[1645183529126,1.46826473,94.8,94.743,42.51338467]
[1645183529328,1.46826473,94.801,94.743,42.51338467]
[1645183529527,1.46826473,94.803,94.743,42.51338467]